bitfinex/quotes_SOLUSD_20250330
["timestamp","ask_amount","ask_price","bid_price","bid_amount"]
[1743354787053,0.03,124.08,124.07,8.20206157]
[1743354792359,0.03,124.08,124.07,26.993872]
[1743354792564,0.03,124.08,124.07,33.68999514]
[1743354792745,0.03,124.08,124.07,114.68959514]
[1743354794555,0.03,124.08,124.07,114.405272]
[1743354795768,0.03,124.08,124.07,96.84166157]
[1743354799247,0.03,124.08,124.07,115.633472]
[1743354799677,0.03,124.14,124.08,0.14216157]
[1743354799869,0.03,124.14,124.1,0.14216157]
[1743354800266,20.32171867,124.14,124.08,80.9996]
[1743354801752,20.32171867,124.14,124.09,8.0586]
[1743354802053,0.03,124.14,124.09,28.2052]
[1743354803061,20.32171867,124.14,124.09,28.2052]
[1743354803661,13.01424193,124.14,124.09,28.2052]
[1743354805171,0.03,124.14,124.09,28.2052]
[1743354805373,0.03,124.14,124.05,42.15752314]
[1743354805374,0.03,124.14,124.05,82.5666]
[1743354805560,12.98424193,124.09,124.05,89.0606]
[1743354805763,12.98424193,124.09,124.04,0.063]
[1743354806369,12.98424193,124.08,124.04,0.063]
[1743354806564,12.98424193,124.07,124.04,0.063]
[1743354806972,1.5852,124.1,124.04,0.063]
[1743354807366,14.56944193,124.1,124.04,0.063]
[1743354808480,1.5852,124.1,124.04,0.063]
[1743354808780,13.83944193,124.1,124.04,0.20516157]
[1743354809079,19.58144193,124.11,124.04,0.20516157]
[1743354809681,12.98424193,124.1,124.04,0.20516157]
[1743354810068,13.01424193,124.1,124.05,8.0612]
[1743354810275,13.01424193,124.1,124.05,28.2143]
[1743354810463,0.03,124.1,124.05,28.2143]
[1743354811470,0.03,124.1,124.06,0.14216157]
[1743354811774,0.03,124.1,124.07,7.64]
[1743354812158,0.03,124.1,124.08,8.0593]
[1743354818876,0.03,124.1,124.09,0.14216157]
[1743354819071,0.03,124.1,124.08,89.0589]
[1743354821786,0.03,124.1,124.08,89.1219]
[1743354828387,0.03,124.1,124.08,81.0626]
[1743354828772,0.03,124.1,124.08,0.063]
[1743354828975,0.03,124.1,124.08,8.1221]
[1743354830287,0.03,124.1,124.08,0.063]
[1743354835513,12.98424193,124.09,124.08,0.063]
[1743354837288,21.04284193,124.09,124.08,0.063]
[1743354839494,21.32716507,124.09,124.08,0.063]
[1743354839691,40.1189755,124.09,124.08,0.063]
[1743354840897,129.3589755,124.09,124.08,0.063]
[1743354841090,20.14216157,124.05,124.04,0.063]
[1743354841301,33.26856507,124.05,124.04,0.063]
[1743354841778,12.98424193,124.06,124.04,0.063]
[1743354842701,94.08424193,124.07,124.04,0.063]
[1743354842898,81.1,124.07,124.04,0.063]
[1743354845186,12.98424193,124.06,124.04,0.063]
[1743354846091,12.98424193,124.05,124.04,0.063]
[1743354847186,13.26856507,124.05,124.04,0.063]
[1743354847601,33.26856507,124.05,124.04,0.063]
[1743354847805,59.39816714,124.05,124.04,0.063]
[1743354848404,67.45936714,124.05,124.04,0.063]
[1743354848598,73.97031298,124.05,124.04,0.063]
[1743354849403,19.54463357,124.04,123.97,0.063]
[1743354849703,20.32203357,124.0,123.97,0.063]
[1743354850289,28.38663357,124.0,123.97,0.063]
[1743354850514,20.32203357,123.98,123.97,0.063]
[1743354850690,14.2039,124.0,123.97,0.063]
[1743354850691,20.60635671,123.99,123.97,0.063]
[1743354852406,0.28432314,124.01,123.97,0.063]
[1743354853300,0.28432314,124.02,123.97,1.6066]
[1743354853502,7.64,124.05,123.97,9.2466]
[1743354853702,0.28432314,124.04,123.97,15.3468]
[1743354853907,39.113844,124.05,123.97,15.3468]
[1743354854310,0.28432314,124.04,123.98,28.2303]
[1743354854889,0.14216157,124.04,123.98,28.2303]
[1743354855089,0.28432314,124.04,123.98,28.2303]
[1743354856105,20.60635671,124.04,123.98,28.2303]
[1743354857609,101.42203357,124.06,123.98,28.2303]
[1743354857909,20.32203357,124.07,123.99,0.14216157]
[1743354859426,20.35203357,124.08,123.99,18.933972]
[1743354859724,20.35203357,124.08,124.0,28.2257]
[1743354860628,20.32203357,124.07,124.0,28.2257]
[1743354863397,0.28432314,124.07,124.0,28.2257]
[1743354863598,20.32203357,124.06,124.0,28.2257]
[1743354863796,20.60635671,124.07,124.0,28.2257]
[1743354864010,0.28432314,124.07,124.0,28.2257]
[1743354864311,28.66645671,124.07,124.0,28.2257]
[1743354864801,20.32203357,124.06,124.0,28.2257]
[1743354868718,20.32203357,124.06,124.0,8.0645]
[1743354868922,28.38283357,124.06,124.0,8.0645]
[1743354869913,20.32203357,124.06,123.98,28.2301]
[1743354870222,20.32203357,124.06,124.01,20.0]
[1743354870617,20.32203357,124.06,123.98,28.2301]
[1743354871223,20.32203357,124.06,123.99,0.063]
[1743354871726,13.00254869,124.06,123.99,0.063]
[1743354874926,21.06344869,124.06,123.99,0.063]
[1743354875116,13.00254869,124.06,123.99,0.063]
[1743354875320,40.02652069,124.07,123.99,0.063]
[1743354875826,13.00254869,124.06,123.99,0.063]
[1743354876926,40.02652069,124.07,123.99,0.063]
[1743354877731,0.03,124.07,124.02,0.14216157]
[1743354878040,0.03,124.07,124.02,7.62]
[1743354879935,0.03,124.07,124.03,28.2189]
[1743354884530,0.03,124.07,124.04,1.92192314]
[1743354884932,0.03,124.1,124.08,21.77976157]
[1743354885118,0.03,124.1,124.09,7.62]
[1743354886132,0.03,124.1,124.09,15.6786]
[1743354886432,0.03,124.1,124.09,15.82076157]
[1743354886818,0.03,124.1,124.09,19.88081952]
[1743354888521,0.03,124.14,124.1,0.14216157]
[1743354888716,0.03,124.14,124.1,18.933972]
[1743354888930,0.03,124.14,124.1,0.14216157]
[1743354890337,0.03,124.14,124.11,8.0573]
[1743354894448,0.03,124.14,124.1,28.203]
[1743354898135,0.03,124.14,124.11,18.933972]
[1743354898749,0.03,124.14,124.12,8.0567]
[1743354900235,0.03,124.14,124.12,15.6767]
[1743354903741,0.03,124.14,124.13,0.14216157]
[1743354904536,0.03,124.16,124.13,99.933572]
[1743354904938,0.03,124.17,124.16,18.79181043]
[1743354905253,0.03,124.17,124.16,38.79181043]
[1743354905445,0.03,124.17,124.16,46.84591043]
[1743354906165,0.03,124.2,124.16,50.32844628]
[1743354906458,0.03,124.2,124.17,7.62]
[1743354907236,13.03254869,124.2,124.14,8.0554]
[1743354907654,21.08424869,124.2,124.14,8.0554]
[1743354908153,13.00254869,124.19,124.13,98.2463]
[1743354908347,21.08424869,124.2,124.13,17.2463]
[1743354909050,0.03,124.2,124.13,17.2463]
[1743354909560,0.03,124.2,124.14,0.14216157]
[1743354909857,0.03,124.2,124.14,18.933972]
[1743354910160,0.03,124.2,124.14,0.14216157]
[1743354911262,0.03,124.2,124.14,19.21829514]
[1743354912163,0.03,124.2,124.16,0.14216157]
[1743354913644,0.03,124.2,124.15,8.0547]
[1743354913844,20.29317247,124.2,124.14,8.0552]
[1743354914045,20.26317247,124.19,124.14,8.0552]
[1743354914251,28.31557247,124.19,124.14,8.0552]
[1743354914463,8.0524,124.19,124.14,8.0552]
[1743354914961,28.31557247,124.19,124.14,8.0552]
[1743354915569,28.34467247,124.2,124.14,8.0552]
[1743354916768,27.34467247,124.2,124.14,8.0552]
[1743354918671,8.0511,124.21,124.14,8.0552]
[1743354919866,114.155172,124.22,124.14,28.1937]
[1743354920049,87.1709,124.22,124.15,0.14216157]
[1743354920363,107.43407247,124.22,124.14,28.2567]
[1743354920762,0.03,124.2,124.14,28.2567]
[1743354930984,12.96880928,124.19,124.14,8.1182]
[1743354931153,12.96880928,124.18,124.14,0.063]
[1743354931360,12.96880928,124.19,124.14,0.063]
[1743354932080,21.02110928,124.19,124.14,0.063]
[1743354933792,12.96880928,124.19,124.14,0.063]
[1743354934078,0.03,124.2,124.14,0.20516157]
[1743354934279,0.03,124.2,124.14,18.996972]
[1743354934485,0.03,124.2,124.16,0.14216157]
[1743354934695,0.03,124.2,124.17,7.6]
[1743354934992,0.03,124.2,124.18,0.14216157]
[1743354935669,0.03,124.2,124.19,8.0521]
[1743354936271,0.03,124.2,124.19,9.6655]
[1743354937470,0.03,124.2,124.19,9.80766157]
[1743354939584,0.03,124.2,124.19,28.599472]
[1743354939965,0.03,124.23,124.2,0.14216157]
[1743354941799,0.03,124.23,124.21,8.0508]
[1743354946794,0.03,124.23,124.22,7.6]
[1743354948287,0.03,124.23,124.22,15.6502]
[1743354951402,0.03,124.27,124.23,0.14216157]
[1743354951589,0.03,124.27,124.24,0.14216157]
[1743354952583,0.03,124.27,124.22,117.06002314]
[1743354952584,0.03,124.27,124.22,89.0502]
[1743354952786,26.70498413,124.27,124.22,8.0502]
[1743354952993,6.4513,124.27,124.22,8.0502]
[1743354953598,6.4513,124.27,124.21,8.0508]
[1743354953996,6.4513,124.27,124.22,0.14216157]
[1743354954189,0.03,124.27,124.22,18.933972]
[1743354955178,0.03,124.27,124.22,0.28432314]
[1743354955378,0.03,124.27,124.22,18.933972]
[1743354955797,0.03,124.27,124.23,28.1734]
[1743354960683,0.03,124.27,124.24,0.14216157]
[1743354960884,0.03,124.27,124.23,28.1734]
[1743354963182,33.20077811,124.27,124.21,8.0508]
[1743354963401,13.23545239,124.26,124.2,8.1142]
[1743354963618,6.2307,124.25,124.2,8.1142]
[1743354964416,18.79181043,124.24,124.2,0.063]
[1743354964620,31.74293968,124.24,124.2,0.063]
[1743354964912,87.3307,124.25,124.2,0.063]
[1743354965117,6.2307,124.25,124.2,0.063]
[1743354965284,27.23012925,124.25,124.2,0.063]
[1743354965803,34.53539563,124.25,124.2,0.063]
[1743354966102,6.2307,124.25,124.2,0.063]
[1743354967136,6.2307,124.25,124.21,0.063]
[1743354968111,9.6472,124.27,124.21,18.996972]
[1743354968112,0.03,124.27,124.21,18.996972]
[1743354968718,0.03,124.27,124.22,20.0]
[1743354969115,0.03,124.27,124.23,8.0495]
[1743354969415,0.03,124.27,124.23,15.6495]
[1743354970095,0.03,124.27,124.23,7.6]
[1743354970298,0.03,124.27,124.22,8.0501]
[1743354972421,0.03,124.27,124.23,20.0]
[1743354973326,0.03,124.27,124.24,28.1712]
[1743354973502,0.03,124.27,124.25,9.49112314]
[1743354973703,0.03,124.33,124.28,20.0]
[1743354975318,0.03,124.33,124.29,8.0456]
[1743354977509,0.03,124.33,124.29,28.1598]
[1743354980125,0.03,124.33,124.3,7.6]
[1743354980831,0.03,124.33,124.31,9.6322]
[1743354981037,0.03,124.4,124.32,18.933972]
[1743354981208,8.0686,124.4,124.32,18.933972]
[1743354981412,28.32499563,124.4,124.32,18.933972]
[1743354981833,20.28639563,124.4,124.32,18.933972]
[1743354982036,0.03,124.4,124.32,18.933972]
[1743354982612,8.21066157,124.4,124.31,29.7432]
[1743354982822,0.03,124.4,124.33,28.1508]
[1743354983031,0.03,124.4,124.34,18.933972]
[1743354983230,0.03,124.4,124.35,7.58]
[1743354984136,0.03,124.4,124.36,0.28432314]
[1743354984359,0.03,124.4,124.35,7.58]
[1743354984648,0.03,124.4,124.36,18.933972]
[1743354984840,0.03,124.4,124.37,8.0405]
[1743354986847,0.03,124.4,124.36,28.1432]
[1743354987556,0.03,124.4,124.37,1.6158]
[1743354988927,0.03,124.4,124.38,8.0398]
[1743354990345,20.28639563,124.4,124.31,82.6158]
[1743354990636,20.28639563,124.4,124.32,8.0437]
[1743354990637,20.25639563,124.37,124.32,8.0437]
[1743354990831,20.25639563,124.36,124.32,8.0437]
[1743354991016,20.25639563,124.36,124.3,8.045]
[1743354991534,15.90442314,124.38,124.3,28.1576]
[1743354991744,36.16081877,124.38,124.3,28.1576]
[1743354991930,15.90442314,124.38,124.3,28.1576]
[1743354992134,20.25639563,124.36,124.3,8.045]
[1743354992323,20.25639563,124.35,124.3,8.045]
[1743354992763,20.25639563,124.34,124.3,8.045]
[1743354992949,20.25639563,124.35,124.3,8.045]
[1743354993155,20.25639563,124.35,124.28,28.1619]
[1743354993976,20.25639563,124.36,124.28,28.1619]
[1743354994485,81.1,124.37,124.29,18.933972]
[1743354995951,34.31039563,124.39,124.3,28.1576]
[1743354996155,20.25639563,124.38,124.31,7.58]
[1743354996847,20.25639563,124.37,124.31,7.58]
[1743354997436,14.054,124.39,124.31,7.58]
[1743354997437,34.31039563,124.39,124.31,7.58]
[1743354997850,20.25639563,124.38,124.31,7.08]
[1743354998239,20.25639563,124.38,124.32,8.0437]
[1743355000121,20.25639563,124.36,124.31,8.0441]
[1743355000351,20.25639563,124.35,124.28,28.1619]
[1743355001229,28.29819563,124.35,124.28,28.1619]
[1743355001552,20.25639563,124.35,124.28,28.1619]
[1743355001757,20.25639563,124.38,124.29,18.933972]
[1743355002060,20.25639563,124.36,124.28,109.1619]
[1743355003045,20.25639563,124.37,124.29,18.933972]
[1743355003637,0.03,124.35,124.3,1.6058]
[1743355003867,0.03,124.35,124.31,18.933972]
[1743355004156,0.03,124.35,124.32,7.58]
[1743355004447,0.03,124.35,124.33,8.0431]
[1743355010158,0.03,124.35,124.32,7.58]
[1743355011158,0.03,124.35,124.3,90.1858]
[1743355011361,0.03,124.35,124.3,9.1858]
[1743355012256,0.03,124.35,124.3,17.2308]
[1743355014460,0.03,124.35,124.31,18.933972]
[1743355014668,0.03,124.35,124.3,17.2308]
[1743355015570,0.03,124.35,124.31,18.933972]
[1743355016169,0.03,124.35,124.31,26.513972]
[1743355016357,0.03,124.35,124.32,8.0437]
[1743355017865,0.03,124.35,124.31,15.97142314]
[1743355018068,0.03,124.35,124.31,7.643]
[1743355021565,20.28639563,124.35,124.31,0.063]
[1743355021973,20.25639563,124.33,124.31,0.063]
[1743355022475,8.0437,124.32,124.31,0.063]
[1743355022898,8.0433,124.33,124.31,0.063]
[1743355023395,0.03,124.35,124.31,0.063]
[1743355023706,0.03,124.35,124.31,7.643]
[1743355023889,28.32819563,124.35,124.31,0.063]
[1743355024269,20.0,124.32,124.31,0.063]
[1743355024463,28.30009563,124.32,124.31,0.063]
[1743355024657,34.43429563,124.32,124.31,0.063]
[1743355024971,34.71861877,124.32,124.31,0.063]
[1743355025172,55.1565292,124.32,124.31,0.063]
[1743355025365,28.03669563,124.32,124.31,0.063]
[1743355025570,101.35639563,124.34,124.31,0.063]
[1743355025773,20.25639563,124.34,124.31,0.063]
[1743355026273,6.1642,124.35,124.31,0.063]
[1743355027154,26.42059563,124.35,124.31,0.063]
[1743355027360,20.25639563,124.34,124.31,0.063]
[1743355027760,14.2062,124.35,124.31,0.063]
[1743355027761,20.25639563,124.32,124.31,0.063]
[1743355029778,20.54071877,124.33,124.31,0.063]
[1743355030361,20.25639563,124.33,124.31,0.063]
[1743355030571,81.1,124.34,124.31,0.063]
[1743355031887,26.42059563,124.35,124.31,0.063]
[1743355032588,6.1642,124.35,124.31,0.063]
[1743355032765,20.25639563,124.34,124.31,0.063]
[1743355033387,26.42059563,124.35,124.31,0.063]
[1743355033598,0.03,124.35,124.31,0.063]
[1743355034062,0.03,124.35,124.31,26.576972]
[1743355034663,0.03,124.35,124.32,28.153]
[1743355037168,0.03,124.35,124.32,8.0437]
[1743355037882,0.03,124.35,124.31,15.6871]
[1743355038083,20.25639563,124.34,124.31,0.063]
[1743355039881,28.29879563,124.34,124.31,0.063]
[1743355040261,20.25639563,124.34,124.31,0.063]
[1743355040482,20.28639563,124.34,124.31,0.063]
[1743355041986,0.03,124.34,124.31,0.063]
[1743355050003,20.28639563,124.34,124.31,0.063]
[1743355050179,20.25639563,124.33,124.31,0.063]
[1743355050487,20.25639563,124.32,124.31,0.063]
[1743355051072,28.29949563,124.33,124.31,0.063]
[1743355051791,20.25639563,124.33,124.31,0.063]
[1743355052087,116.05639563,124.34,124.31,0.063]
[1743355052293,108.01369563,124.34,124.31,0.063]
[1743355052586,81.13,124.34,124.31,0.063]
[1743355053292,101.38639563,124.34,124.31,0.063]
[1743355054289,81.13,124.34,124.31,0.063]
[1743355056195,109.42889563,124.34,124.31,0.063]
[1743355056369,20.25639563,124.32,124.31,0.063]
[1743355057698,28.30009563,124.32,124.31,0.063]
[1743355057876,20.25639563,124.32,124.31,0.063]
[1743355058209,101.35639563,124.33,124.31,0.063]
[1743355058979,81.1,124.33,124.31,0.063]
[1743355059793,109.39949563,124.33,124.31,0.063]
[1743355060003,20.25639563,124.32,124.31,0.063]
[1743355060496,26.88369563,124.32,124.31,0.063]
[1743355061197,45.67550606,124.32,124.31,0.063]
[1743355061503,53.25550606,124.32,124.31,0.063]
[1743355061994,42.6495572,124.32,124.31,0.063]
[1743355062177,61.29920606,124.32,124.31,0.063]
[1743355062377,81.55560169,124.32,124.31,0.063]
[1743355062793,20.0,124.29,124.28,0.063]
[1743355062991,40.25639563,124.29,124.28,0.063]
[1743355063174,59.04820606,124.29,124.28,0.063]
[1743355063675,59.3325292,124.29,124.28,0.063]
[1743355064298,67.3781292,124.29,124.28,0.063]
[1743355065902,59.3325292,124.29,124.28,0.063]
[1743355066299,67.3781292,124.29,124.28,0.063]
[1743355068011,25.38771043,124.28,124.21,0.063]
[1743355068222,20.25639563,124.22,124.21,0.063]
[1743355068717,20.29511043,124.25,124.21,0.063]
[1743355068718,20.25639563,124.23,124.21,0.063]
[1743355069913,20.25639563,124.22,124.21,0.063]
[1743355070421,39.04820606,124.22,124.21,0.063]
[1743355070715,46.62820606,124.22,124.21,0.063]
[1743355072018,54.9627292,124.22,124.21,0.063]
[1743355073399,19.07613357,124.21,124.2,0.063]
[1743355073616,59.58892483,124.21,124.2,0.063]
[1743355074309,67.63972483,124.21,124.2,0.063]
[1743355074522,38.79181043,124.19,124.18,0.063]
[1743355074714,59.04820606,124.19,124.18,0.063]
[1743355075522,59.3325292,124.19,124.18,0.063]
[1743355076820,67.3846292,124.19,124.18,0.063]
[1743355079109,106.02761043,124.18,124.14,0.063]
[1743355079310,20.25639563,124.15,124.14,0.063]
[1743355079503,39.04820606,124.15,124.14,0.063]
[1743355082110,47.10290606,124.15,124.14,0.063]
[1743355082313,67.50146326,124.15,124.14,0.063]
[1743355082501,19.07613357,124.14,124.1,0.063]
[1743355082698,39.19036763,124.11,124.1,0.063]
[1743355083321,47.24766763,124.11,124.1,0.063]
[1743355085113,39.19036763,124.11,124.1,0.063]
[1743355086018,45.67525329,124.11,124.1,0.063]
[1743355086324,53.87471486,124.11,124.1,0.063]
[1743355086623,0.14216157,124.09,124.08,0.063]
[1743355086832,59.30460169,124.09,124.08,0.063]
[1743355087358,39.04820606,124.09,124.08,0.063]
[1743355090343,39.3325292,124.09,124.08,0.063]
[1743355094030,47.3911292,124.09,124.08,0.063]
[1743355094227,39.3325292,124.09,124.08,0.063]
[1743355099241,47.3911292,124.09,124.08,0.063]
[1743355099438,67.64752483,124.09,124.08,0.063]
[1743355100341,18.79181043,124.08,124.07,0.063]
[1743355100532,65.52220169,124.08,124.01,0.063]
[1743355100728,20.25639563,124.03,124.01,0.063]
[1743355101422,20.25639563,124.02,124.01,0.063]
[1743355101624,20.25639563,124.03,124.01,0.063]
[1743355102348,39.04820606,124.02,124.01,0.063]
[1743355104042,20.54071877,124.03,124.01,0.063]
[1743355104253,18.933972,124.03,124.01,0.063]
[1743355104437,20.25639563,124.08,124.01,6.7152]
[1743355104640,20.25639563,124.08,124.02,1.6658]
[1743355104841,0.14216157,124.08,124.02,1.6658]
[1743355105045,19.07613357,124.08,124.02,1.6658]
[1743355105345,20.25639563,124.07,124.02,1.6658]
[1743355105531,18.79181043,124.07,124.02,1.6658]
[1743355105730,18.79181043,124.08,124.02,1.6658]
[1743355105931,39.04820606,124.08,124.02,1.6658]
[1743355106542,18.79181043,124.08,124.03,8.0625]
[1743355108426,20.25639563,124.09,124.03,8.0625]
[1743355108633,101.38639563,124.1,124.03,8.0625]
[1743355108833,81.13,124.1,124.03,28.2189]
[1743355109239,101.38639563,124.1,124.03,28.2189]
[1743355109440,109.44439563,124.1,124.03,28.2189]
[1743355109753,101.38639563,124.1,124.03,28.2189]
[1743355109963,89.1882,124.1,124.04,7.7942]
[1743355110967,89.1882,124.1,124.05,8.0612]
[1743355111347,109.44459563,124.1,124.05,8.0612]
[1743355113966,109.44459563,124.1,124.05,8.1242]
[1743355116151,101.38639563,124.1,124.05,8.1242]
[1743355116462,0.03,124.1,124.05,35.8573]
[1743355116666,0.03,124.1,124.09,6.2514]
[1743355116860,0.03,124.14,124.09,7.7942]
[1743355117064,0.03,124.14,124.1,7.58]
[1743355117371,0.03,124.14,124.11,1.5428]
[1743355117851,0.03,124.14,124.12,8.0567]
[1743355118057,0.03,124.14,124.13,6.2514]
[1743355118384,81.1,124.17,124.13,6.2514]
[1743355118577,81.1,124.19,124.13,6.2514]
[1743355119678,81.1,124.19,124.14,8.0554]
[1743355120554,81.1,124.19,124.14,28.1939]
[1743355121058,81.1,124.21,124.14,28.1939]
[1743355121263,0.03,124.23,124.18,20.0]
[1743355121554,101.38639563,124.23,124.15,9.1069]
[1743355121759,20.25639563,124.21,124.15,17.1615]
[1743355123280,28.30749563,124.21,124.15,17.1615]
[1743355123682,40.48027588,124.21,124.15,17.1615]
[1743355123978,40.48027588,124.21,124.15,9.5815]
[1743355125183,121.57957588,124.22,124.15,9.5815]
[1743355125761,113.52917588,124.21,124.15,9.5815]
[1743355126066,113.55917588,124.21,124.15,9.5815]
[1743355127593,121.61007588,124.21,124.15,9.5815]
[1743355129560,113.55917588,124.21,124.15,9.5815]
[1743355130473,121.61017588,124.21,124.15,9.5815]
[1743355131676,32.42917588,124.2,124.15,1.5269]
[1743355131864,32.42917588,124.19,124.15,1.5269]
[1743355132060,32.42917588,124.19,124.13,14.3071]
[1743355133079,81.1,124.2,124.13,34.4472]
[1743355135659,81.1,124.2,124.16,20.0]
[1743355137185,81.1,124.2,124.17,8.0534]
[1743355138489,0.03,124.21,124.17,9.617]
[1743355139589,32.45917588,124.21,124.17,1.5636]
[1743355140378,0.03,124.21,124.17,1.5636]
[1743355140577,0.03,124.21,124.18,8.0528]
[1743355143334,0.03,124.21,124.2,20.0]
[1743355144801,0.03,124.21,124.2,28.0515]
[1743355145801,0.03,124.21,124.2,35.6115]
[1743355146592,0.03,124.27,124.23,6.3972]
[1743355146771,0.03,124.27,124.26,20.0]
[1743355148893,0.03,124.27,124.26,28.0476]
[1743355156280,0.03,124.27,124.26,46.83941043]
[1743355156480,0.03,124.27,124.26,47.26589514]
[1743355156781,0.03,124.27,124.26,28.0476]
[1743355157188,20.25078201,124.32,124.26,28.0476]
[1743355157996,28.29498201,124.32,124.26,28.0476]
[1743355158195,20.25078201,124.31,124.26,28.0476]
[1743355158702,20.25078201,124.3,124.24,1.5636]
[1743355158900,20.25078201,124.29,124.24,9.6123]
[1743355159110,20.25078201,124.3,124.24,9.6123]
[1743355159420,108.78218201,124.31,124.24,9.6123]
[1743355160199,116.82668201,124.31,124.24,29.7346]
[1743355161516,108.78218201,124.31,124.24,29.7346]
[1743355161817,80.63,124.31,124.27,20.0]
[1743355162202,0.03,124.33,124.28,8.0463]
[1743355163999,20.28078201,124.33,124.27,28.0467]
[1743355164195,20.25078201,124.32,124.27,28.0467]
[1743355165113,28.29458201,124.32,124.27,28.0467]
[1743355165717,20.25078201,124.31,124.26,8.1103]
[1743355165900,20.25078201,124.31,124.26,0.063]
[1743355166100,20.25078201,124.3,124.26,0.063]
[1743355166311,20.25078201,124.31,124.26,8.1104]
[1743355167427,20.25078201,124.3,124.26,0.063]
[1743355169403,20.25078201,124.31,124.26,0.063]
[1743355169811,80.63,124.31,124.26,0.063]
[1743355171901,80.63,124.31,124.26,19.28129514]
[1743355172522,0.03,124.33,124.26,19.28129514]
[1743355173915,0.03,124.33,124.27,28.1643]
[1743355174233,0.03,124.33,124.28,20.72339514]
[1743355174404,0.03,124.33,124.29,7.56]
[1743355174607,0.03,124.33,124.3,19.21829514]
[1743355176023,0.03,124.33,124.31,8.0444]
[1743355180640,0.03,124.33,124.29,8.0456]
[1743355181730,20.28078201,124.33,124.29,8.0456]
[1743355182457,20.25078201,124.32,124.28,8.0461]
[1743355182663,20.28078201,124.33,124.28,8.0461]
[1743355182955,0.03,124.33,124.28,8.0461]
[1743355183454,0.03,124.33,124.27,8.0469]
[1743355183755,20.28078201,124.33,124.27,8.0469]
[1743355185833,0.03,124.33,124.27,8.0469]
[1743355191653,20.25078201,124.31,124.26,15.6704]
[1743355191966,20.25078201,124.3,124.26,8.1104]
[1743355192850,28.29578201,124.31,124.26,8.1104]
[1743355193862,20.25078201,124.29,124.26,0.063]
[1743355195145,20.25078201,124.3,124.26,0.063]
[1743355195734,28.29598201,124.3,124.26,0.063]
[1743355196658,110.42838201,124.31,124.26,0.063]
[1743355197061,80.63,124.31,124.26,0.063]
[1743355199071,28.29488201,124.32,124.26,0.063]
[1743355199447,108.95408201,124.33,124.26,0.063]
[1743355200360,100.91078201,124.33,124.26,0.063]
[1743355200543,80.66,124.33,124.26,0.063]
[1743355201973,100.91078201,124.33,124.26,0.063]
[1743355202380,80.66,124.33,124.26,0.063]
[1743355203162,100.91078201,124.33,124.26,0.063]
[1743355203669,80.66,124.33,124.26,0.063]
[1743355204784,20.25078201,124.32,124.26,0.063]
[1743355204993,20.25078201,124.3,124.26,0.063]
[1743355205744,12.95267753,124.3,124.26,0.063]
[1743355206175,80.63,124.32,124.26,0.063]
[1743355206176,12.95267753,124.29,124.26,0.063]
[1743355207050,12.95267753,124.3,124.26,0.063]
[1743355207572,93.58267753,124.32,124.26,0.063]
[1743355207775,100.86158959,124.32,124.26,0.063]
[1743355207975,80.63,124.32,124.26,0.063]
[1743355208180,0.03,124.33,124.26,28.2297]
[1743355208473,0.03,124.33,124.27,1.5444]
[1743355208652,0.03,124.33,124.28,7.54]
[1743355209276,0.03,124.33,124.29,8.0456]
[1743355210652,0.03,124.33,124.29,28.1598]
[1743355214271,0.03,124.33,124.32,20.0]